[Event "Championnat du monde jeunes U10"]
[Date "2024.11.17"]
[White "Iliev, Stoyan"]
[Black "Jani, Aakash"]
[WhiteElo "1671"]
[BlackElo "1810"]
[Round "3.40"]
[Result "0-1"]
[TimeControl "5400+30"]

1. e4 {[%clk 1:30:56]} 1... e5 {[%clk 1:30:50]} 2. Nf3 {[%clk 1:31:21]} 2... Nc6
{[%clk 1:31:13]} 3. Bb5 {[%clk 1:31:47]} 3... Nge7 {[%clk 1:31:17]} 4. d3 {[%clk
1:31:41]} 4... g6 {[%clk 1:30:16]} 5. Bg5 {[%clk 1:31:26]} 5... Bg7 {[%clk
1:29:04]} 6. Nc3 {[%clk 1:31:20]} 6... h6 {[%clk 1:26:59]} 7. Bh4 {[%clk
1:30:37]} 7... g5 {[%clk 1:25:05]} 8. Bg3 {[%clk 1:30:27]} 8... d6 {[%clk
1:21:44]} 9. Nd2 {[%clk 1:20:44]} 9... a6 {[%clk 1:19:17]} 10. Bc4 {[%clk
1:18:45]} 10... Ng6 {[%clk 1:16:28]} 11. Qf3 {[%clk 1:16:31]} 11... O-O {[%clk
1:15:28]} 12. Qh5 {[%clk 1:14:49]} 12... Kh7 {[%clk 1:13:45]} 13. h4 {[%clk
1:10:18]} 13... g4 {[%clk 1:09:36]} 14. Ne2 {[%clk 1:06:17]} 14... Nce7 {[%clk
1:09:00]} 15. f3 {[%clk 1:05:01]} 15... Ng8 {[%clk 1:09:01]} 16. O-O-O {[%clk
0:45:57]} 16... Nf6 {[%clk 1:08:03]} 17. Qg5 {[%clk 0:46:15]} 17... hxg5 {[%clk
1:08:25]} 18. hxg5+ {[%clk 0:46:42]} 18... Kg8 {[%clk 1:08:31]} 19. gxf6 {[%clk
0:46:53]} 19... Qxf6 {[%clk 1:08:35]} 20. Rh2 {[%clk 0:46:29]} 20... Be6 {[%clk
1:07:57]} 21. Rdh1 {[%clk 0:45:45]} 21... Bxc4 {[%clk 1:07:11]} 22. dxc4 {[%clk
0:44:47]} 22... Qg5 {[%clk 1:07:01]} 23. Kd1 {[%clk 0:43:04]} 23... Nf4 {[%clk
1:03:36]} 24. Bxf4 {[%clk 0:40:57]} 24... exf4 {[%clk 1:03:44]} 25. Rh5 {[%clk
0:41:10]} 25... Qf6 {[%clk 1:04:01]} 26. fxg4 {[%clk 0:41:05]} 26... Qxb2 {[%clk
1:04:16]} 27. Nxf4 {[%clk 0:40:46]} 27... Qxa2 {[%clk 1:04:08]} 28. Nd5 {[%clk
0:40:59]} 28... Rae8 {[%clk 1:01:56]} 29. Nxc7 {[%clk 0:35:43]} 29... Re5 {[%clk
1:01:54]} 30. R5h3 {[%clk 0:34:58]} 30... Rc8 {[%clk 1:01:33]} 31. Nd5 {[%clk
0:34:28]} 31... b5 {[%clk 1:00:43]} 32. g5 {[%clk 0:34:19]} 32... Rxd5 {[%clk
0:57:44]} 33. exd5 {[%clk 0:33:47]} 33... bxc4 {[%clk 0:58:05]} 34. g4 {[%clk
0:25:05]} 34... c3 {[%clk 0:58:10]} 35. Nb3 {[%clk 0:25:13]} 35... Qb1+ {[%clk
0:58:27]} 36. Nc1 {[%clk 0:25:36]} 36... Rc4 {[%clk 0:58:42]} 37. Rd3 {[%clk
0:23:11]} 37... Rxg4 {[%clk 0:58:57]} 38. Re1 {[%clk 0:23:19]} 38... Be5 {[%clk
0:58:46]} 39. g6 {[%clk 0:22:49]} 39... fxg6 {[%clk 0:59:05]} 40. Rf1 {[%clk
0:22:29]} 40... Bf4 {[%clk 0:59:22]} 0-1

[Variant "Standard"]
[Site "Europe Echecs"]

[Event "Championnat du monde jeunes U10"]
[Date "2024.11.17"]
[White "Kovacs, Balazs"]
[Black "Barsov, Mikhail"]
[WhiteElo "1800"]
[BlackElo "1668"]
[Round "3.41"]
[Result "0-1"]
[TimeControl "5400+30"]

1. e4 {[%clk 1:30:54]} 1... c6 {[%clk 1:30:57]} 2. d4 {[%clk 1:31:21]} 2... d5
{[%clk 1:31:22]} 3. Nc3 {[%clk 1:31:43]} 3... dxe4 {[%clk 1:31:48]} 4. Nxe4
{[%clk 1:32:08]} 4... Nf6 {[%clk 1:32:12]} 5. Qd3 {[%clk 1:32:35]} 5... Nxe4
{[%clk 1:32:32]} 6. Qxe4 {[%clk 1:33:00]} 6... Nd7 {[%clk 1:32:59]} 7. Nf3
{[%clk 1:33:24]} 7... Nf6 {[%clk 1:33:24]} 8. Qd3 {[%clk 1:33:49]} 8... g6
{[%clk 1:33:48]} 9. g3 {[%clk 1:34:14]} 9... Bg7 {[%clk 1:33:46]} 10. Bg2 {[%clk
1:34:32]} 10... O-O {[%clk 1:33:26]} 11. O-O {[%clk 1:34:12]} 11... Bf5 {[%clk
1:33:49]} 12. Qe2 {[%clk 1:34:13]} 12... Re8 {[%clk 1:30:15]} 13. c3 {[%clk
1:32:35]} 13... Qb6 {[%clk 1:25:45]} 14. Bf4 {[%clk 1:23:17]} 14... Rad8 {[%clk
1:20:34]} 15. Ne5 {[%clk 1:13:42]} 15... Nd5 {[%clk 1:15:03]} 16. Bxd5 {[%clk
1:03:07]} 16... Rxd5 {[%clk 1:03:18]} 17. b3 {[%clk 0:56:33]} 17... h6 {[%clk
0:53:14]} 18. g4 {[%clk 0:41:42]} 18... Be6 {[%clk 0:49:22]} 19. Nxg6 {[%clk
0:35:10]} 19... c5 {[%clk 0:41:06]} 20. Ne5 {[%clk 0:20:48]} 20... cxd4 {[%clk
0:39:31]} 21. c4 {[%clk 0:20:33]} 21... Rdd8 {[%clk 0:35:39]} 22. Kh1 {[%clk
0:15:39]} 22... d3 {[%clk 0:29:30]} 23. Nxd3 {[%clk 0:13:59]} 23... Bxa1 {[%clk
0:20:52]} 24. Rxa1 {[%clk 0:14:19]} 24... Qd4 {[%clk 0:18:59]} 25. Rd1 {[%clk
0:11:43]} 25... Kh7 {[%clk 0:15:08]} 26. g5 {[%clk 0:10:10]} 26... Bf5 {[%clk
0:12:19]} 27. Qh5 {[%clk 0:08:06]} 27... Qg7 {[%clk 0:11:15]} 28. Be5 {[%clk
0:07:23]} 28... Qg6 {[%clk 0:09:31]} 29. Qxg6+ {[%clk 0:05:28]} 29... Bxg6
{[%clk 0:09:47]} 30. Nb2 {[%clk 0:05:40]} 30... Rxd1+ {[%clk 0:09:42]} 31. Nxd1
{[%clk 0:06:09]} 31... Be4+ {[%clk 0:09:45]} 32. Kg1 {[%clk 0:06:33]} 32... hxg5
{[%clk 0:10:09]} 33. Ne3 {[%clk 0:06:43]} 33... Kg6 {[%clk 0:08:56]} 34. Kf1
{[%clk 0:06:17]} 34... Bf3 {[%clk 0:08:42]} 35. Ke1 {[%clk 0:05:12]} 35... Rd8
{[%clk 0:08:59]} 36. Bc3 {[%clk 0:04:54]} 36... f5 {[%clk 0:08:57]} 37. Ba5
{[%clk 0:04:43]} 37... Rd7 {[%clk 0:08:55]} 38. Bd2 {[%clk 0:05:05]} 38... e5
{[%clk 0:09:01]} 39. c5 {[%clk 0:04:55]} 39... f4 {[%clk 0:08:52]} 40. Nc4
{[%clk 0:05:18]} 40... Kf6 {[%clk 0:08:21]} 41. Nd6 {[%clk 0:03:55]} 41... Ke6
{[%clk 0:07:49]} 42. Bc3 {[%clk 0:02:54]} 42... Rc7 {[%clk 0:06:51]} 43. b4
{[%clk 0:01:49]} 43... a5 {[%clk 0:06:26]} 44. a3 {[%clk 0:01:55]} 44... axb4
{[%clk 0:06:46]} 45. axb4 {[%clk 0:02:20]} 45... Rh7 {[%clk 0:06:46]} 46. Nc4
{[%clk 0:01:08]} 46... e4 {[%clk 0:05:03]} 47. Na5 {[%clk 0:00:34]} 47... e3
{[%clk 0:05:22]} 48. fxe3 {[%clk 0:00:36]} 48... fxe3 {[%clk 0:05:48]} 49. Kf1
{[%clk 0:00:33]} 49... Rxh2 {[%clk 0:05:46]} 50. Ke1 {[%clk 0:00:49]} 50... Rh1#
0-1

[Variant "Standard"]
[Site "Europe Echecs"]

[Event "Championnat du monde jeunes U10"]
[Date "2024.11.17"]
[White "Cao, Frank Zhongtian"]
[Black "Bartash, Saveli"]
[WhiteElo "1793"]
[BlackElo "1661"]
[Round "3.42"]
[Result "1-0"]
[TimeControl "5400+30"]

1. e4 {[%clk 1:30:59]} 1... c5 {[%clk 1:30:48]} 2. Nf3 {[%clk 1:31:25]} 2... d6
{[%clk 1:31:08]} 3. d4 {[%clk 1:31:52]} 3... cxd4 {[%clk 1:31:25]} 4. Nxd4
{[%clk 1:32:20]} 4... Nf6 {[%clk 1:31:39]} 5. Nc3 {[%clk 1:32:45]} 5... a6
{[%clk 1:31:56]} 6. Bg5 {[%clk 1:33:01]} 6... e6 {[%clk 1:32:09]} 7. f4 {[%clk
1:33:25]} 7... Be7 {[%clk 1:31:24]} 8. Qf3 {[%clk 1:33:50]} 8... Nbd7 {[%clk
1:31:08]} 9. O-O-O {[%clk 1:33:52]} 9... Qc7 {[%clk 1:30:55]} 10. g4 {[%clk
1:34:07]} 10... b5 {[%clk 1:29:53]} 11. Bxf6 {[%clk 1:34:25]} 11... Nxf6 {[%clk
1:29:41]} 12. g5 {[%clk 1:34:50]} 12... Nd7 {[%clk 1:29:27]} 13. f5 {[%clk
1:34:52]} 13... Bxg5+ {[%clk 1:22:08]} 14. Kb1 {[%clk 1:35:16]} 14... Nc5 {[%clk
1:20:32]} 15. fxe6 {[%clk 1:27:20]} 15... O-O {[%clk 1:17:27]} 16. Qg2 {[%clk
1:16:39]} 16... fxe6 {[%clk 1:10:51]} 17. Qxg5 {[%clk 1:12:53]} 17... b4 {[%clk
1:10:56]} 18. Nd5 {[%clk 1:05:53]} 18... exd5 {[%clk 1:09:58]} 19. Qxd5+ {[%clk
1:06:00]} 19... Qf7 {[%clk 1:09:50]} 20. Bc4 {[%clk 1:01:00]} 20... Ra7 {[%clk
1:07:47]} 21. Qxf7+ {[%clk 0:45:30]} 21... Rfxf7 {[%clk 1:07:46]} 22. Nc6 {[%clk
0:35:49]} 22... Rd7 {[%clk 1:06:10]} 23. Rhf1 {[%clk 0:31:13]} 23... d5 {[%clk
1:02:24]} 24. Bxd5 {[%clk 0:23:49]} 24... Ne6 {[%clk 1:01:29]} 25. Ne5 {[%clk
0:19:35]} 25... Rxf1 {[%clk 1:01:00]} 26. Bxe6+ {[%clk 0:16:58]} 26... Rff7
{[%clk 1:00:33]} 27. Rxd7 {[%clk 0:16:24]} 27... Bxd7 {[%clk 1:00:37]} 28. Nxd7
{[%clk 0:16:27]} 28... g5 {[%clk 1:00:43]} 29. Ne5 {[%clk 0:16:45]} 29... Kg7
{[%clk 1:01:06]} 30. Nxf7 {[%clk 0:16:50]} 30... Kf6 {[%clk 1:01:22]} 31. Bd5
{[%clk 0:17:15]} 31... g4 {[%clk 1:01:40]} 32. Nh6 {[%clk 0:17:16]} 32... Kg5
{[%clk 1:01:58]} 33. Nxg4 {[%clk 0:17:38]} 33... Kxg4 {[%clk 1:02:15]} 34. e5
{[%clk 0:18:06]} 1-0

[Variant "Standard"]
[Site "Europe Echecs"]

[Event "Championnat du monde jeunes U10"]
[Date "2024.11.17"]
[White "Neuschild, Marius"]
[Black "Tugsbilguun, Davganamdag"]
[WhiteElo "1786"]
[BlackElo "1660"]
[Round "3.43"]
[Result "0-1"]
[TimeControl "5400+30"]

1. e4 {[%clk 1:30:58]} 1... c5 {[%clk 1:30:52]} 2. Nf3 {[%clk 1:31:18]} 2... d6
{[%clk 1:31:14]} 3. d4 {[%clk 1:31:44]} 3... cxd4 {[%clk 1:31:39]} 4. Nxd4
{[%clk 1:32:11]} 4... Nf6 {[%clk 1:32:03]} 5. Nc3 {[%clk 1:32:38]} 5... a6
{[%clk 1:32:28]} 6. f4 {[%clk 1:33:03]} 6... e5 {[%clk 1:32:54]} 7. Nf3 {[%clk
1:33:28]} 7... Nbd7 {[%clk 1:33:07]} 8. Bc4 {[%clk 1:33:43]} 8... Be7 {[%clk
1:32:40]} 9. a4 {[%clk 1:33:29]} 9... O-O {[%clk 1:30:17]} 10. O-O {[%clk
1:33:01]} 10... exf4 {[%clk 1:24:24]} 11. Bxf4 {[%clk 1:32:24]} 11... Qb6+
{[%clk 1:23:39]} 12. Kh1 {[%clk 1:32:34]} 12... Qxb2 {[%clk 1:21:03]} 13. Qe1
{[%clk 1:31:55]} 13... Qb6 {[%clk 1:07:16]} 14. Ba2 {[%clk 1:16:52]} 14... Qc7
{[%clk 1:00:30]} 15. Rd1 {[%clk 1:09:40]} 15... Ne5 {[%clk 0:55:10]} 16. h3
{[%clk 1:00:39]} 16... Bd7 {[%clk 0:44:53]} 17. Nd5 {[%clk 0:52:46]} 17... Nxd5
{[%clk 0:44:51]} 18. Bxd5 {[%clk 0:53:02]} 18... Bxa4 {[%clk 0:36:40]} 19. Qg3
{[%clk 0:49:08]} 19... Bf6 {[%clk 0:23:10]} 20. Nd4 {[%clk 0:41:36]} 20... Kh8
{[%clk 0:11:55]} 21. Nf5 {[%clk 0:26:33]} 21... g6 {[%clk 0:08:44]} 22. Ne3
{[%clk 0:25:11]} 22... Bg7 {[%clk 0:08:17]} 23. Bg5 {[%clk 0:19:24]} 23... f6
{[%clk 0:07:15]} 24. Bf4 {[%clk 0:19:18]} 24... Bc6 {[%clk 0:07:09]} 25. Rf2
{[%clk 0:13:15]} 25... a5 {[%clk 0:07:07]} 26. h4 {[%clk 0:11:51]} 26... a4
{[%clk 0:04:55]} 27. h5 {[%clk 0:11:58]} 27... g5 {[%clk 0:04:49]} 28. Bxe5
{[%clk 0:11:52]} 28... dxe5 {[%clk 0:05:06]} 29. h6 {[%clk 0:06:55]} 29... Bxh6
{[%clk 0:05:31]} 30. Qh3 {[%clk 0:06:51]} 30... Bg7 {[%clk 0:05:42]} 31. g4
{[%clk 0:06:52]} 31... Bxd5 {[%clk 0:04:51]} 32. exd5 {[%clk 0:06:03]} 32... Qf7
{[%clk 0:04:22]} 33. Rh2 {[%clk 0:05:44]} 33... Qg6 {[%clk 0:04:40]} 34. Nf5
{[%clk 0:05:26]} 34... a3 {[%clk 0:04:22]} 35. Re1 {[%clk 0:03:24]} 35... h6
{[%clk 0:04:21]} 36. Nxh6 {[%clk 0:00:47]} 36... Bxh6 {[%clk 0:04:42]} 37. Qxh6+
{[%clk 0:01:11]} 37... Qxh6 {[%clk 0:05:07]} 38. Rxh6+ {[%clk 0:01:37]} 38...
Kg7 {[%clk 0:05:34]} 39. Rh2 {[%clk 0:01:23]} 39... Rh8 {[%clk 0:06:00]} 40.
Rxh8 {[%clk 0:01:32]} 40... Rxh8+ {[%clk 0:06:29]} 41. Kg2 {[%clk 0:01:50]}
41... Rd8 {[%clk 0:06:44]} 42. Rb1 {[%clk 0:00:59]} 42... Rxd5 {[%clk 0:05:30]}
43. Rxb7+ {[%clk 0:01:19]} 43... Kg6 {[%clk 0:05:59]} 44. Ra7 {[%clk 0:01:12]}
44... Rd2+ {[%clk 0:05:54]} 45. Kf3 {[%clk 0:01:00]} 45... Rxc2 {[%clk 0:06:21]}
46. Rxa3 {[%clk 0:01:13]} 46... Rc6 {[%clk 0:06:44]} 47. Ra5 {[%clk 0:00:53]}
47... Rc3+ {[%clk 0:06:19]} 48. Kf2 {[%clk 0:00:56]} 48... Kf7 {[%clk 0:05:52]}
49. Ra6 {[%clk 0:00:44]} 49... Ke7 {[%clk 0:06:04]} 50. Rb6 {[%clk 0:00:50]}
50... Rd3 {[%clk 0:06:28]} 51. Rb7+ {[%clk 0:00:59]} 51... Ke6 {[%clk 0:06:50]}
52. Rb6+ {[%clk 0:01:19]} 52... Rd6 {[%clk 0:07:06]} 53. Rb8 {[%clk 0:01:19]}
53... Kd5 {[%clk 0:06:36]} 54. Ke3 {[%clk 0:01:23]} 54... Kc5 {[%clk 0:05:41]}
55. Rc8+ {[%clk 0:01:29]} 55... Rc6 {[%clk 0:06:04]} 56. Rb8 {[%clk 0:01:06]}
56... Kc4 {[%clk 0:05:06]} 57. Ke4 {[%clk 0:00:56]} 57... Kc3 {[%clk 0:05:20]}
58. Kf3 {[%clk 0:00:49]} 58... Kd2 {[%clk 0:05:21]} 59. Rd8+ {[%clk 0:01:04]}
59... Ke1 {[%clk 0:05:45]} 60. Rd3 {[%clk 0:00:59]} 60... Rc4 {[%clk 0:06:03]}
61. Re3+ {[%clk 0:00:47]} 61... Kf1 {[%clk 0:06:25]} 62. Ra3 {[%clk 0:00:50]}
62... Rf4+ {[%clk 0:06:47]} 63. Kg3 {[%clk 0:01:10]} 63... Re4 {[%clk 0:06:51]}
64. Ra1+ {[%clk 0:01:24]} 64... Re1 {[%clk 0:07:17]} 65. Ra6 {[%clk 0:00:58]}
65... Re3+ {[%clk 0:07:30]} 66. Kh2 {[%clk 0:01:22]} 66... Rf3 {[%clk 0:07:47]}
67. Ra1+ {[%clk 0:01:48]} 67... Ke2 {[%clk 0:08:15]} 68. Ra2+ {[%clk 0:02:02]}
68... Ke3 {[%clk 0:08:41]} 69. Kg2 {[%clk 0:01:56]} 69... Kf4 {[%clk 0:08:55]}
70. Ra4+ {[%clk 0:01:28]} 70... e4 {[%clk 0:09:21]} 71. Rb4 {[%clk 0:01:15]}
71... Rg3+ {[%clk 0:09:38]} 72. Kf2 {[%clk 0:01:40]} 72... Rxg4 {[%clk 0:10:02]}
73. Ra4 {[%clk 0:01:59]} 73... f5 {[%clk 0:10:25]} 74. Rb4 {[%clk 0:02:15]}
74... Rh4 {[%clk 0:10:49]} 75. Kg2 {[%clk 0:02:28]} 75... g4 {[%clk 0:11:13]}
76. Rb3 {[%clk 0:02:45]} 76... Rh3 {[%clk 0:11:37]} 77. Rb4 {[%clk 0:03:02]}
77... Rd3 {[%clk 0:11:57]} 78. Ra4 {[%clk 0:03:22]} 78... g3 {[%clk 0:12:21]}
79. Rb4 {[%clk 0:03:49]} 79... Rd2+ {[%clk 0:12:46]} 80. Kg1 {[%clk 0:04:11]}
80... Kf3 {[%clk 0:13:11]} 81. Rb3+ {[%clk 0:04:31]} 81... e3 {[%clk 0:13:39]}
82. Rb1 {[%clk 0:04:52]} 82... Rd3 {[%clk 0:13:55]} 83. Ra1 {[%clk 0:05:15]}
83... e2 {[%clk 0:14:21]} 84. Re1 {[%clk 0:05:25]} 84... Rd1 {[%clk 0:14:47]}
85. Rxd1 {[%clk 0:05:51]} 85... exd1=R# 0-1

[Variant "Standard"]
[Site "Europe Echecs"]

[Event "Championnat du monde jeunes U10"]
[Date "2024.11.17"]
[White "Popov, Aleksandr And"]
[Black "Liu, Liam"]
[WhiteElo "1651"]
[BlackElo "1783"]
[Round "3.44"]
[Result "0-1"]
[TimeControl "5400+30"]

1. e4 {[%clk 1:30:59]} 1... c6 {[%clk 1:30:53]} 2. d4 {[%clk 1:31:24]} 2... d5
{[%clk 1:31:17]} 3. e5 {[%clk 1:31:42]} 3... c5 {[%clk 1:31:41]} 4. dxc5 {[%clk
1:32:08]} 4... e6 {[%clk 1:31:58]} 5. a3 {[%clk 1:32:29]} 5... Bxc5 {[%clk
1:32:08]} 6. b4 {[%clk 1:31:50]} 6... Be7 {[%clk 1:32:26]} 7. Bb2 {[%clk
1:30:25]} 7... a5 {[%clk 1:32:39]} 8. b5 {[%clk 1:25:33]} 8... Nd7 {[%clk
1:32:17]} 9. Nf3 {[%clk 1:21:46]} 9... Nh6 {[%clk 1:30:40]} 10. Be2 {[%clk
1:16:36]} 10... f6 {[%clk 1:27:32]} 11. exf6 {[%clk 1:15:11]} 11... Bxf6 {[%clk
1:26:45]} 12. Bxf6 {[%clk 1:13:30]} 12... Qxf6 {[%clk 1:26:36]} 13. Qd4 {[%clk
1:11:06]} 13... Nf5 {[%clk 1:25:02]} 14. Qxf6 {[%clk 1:11:12]} 14... gxf6 {[%clk
1:23:41]} 15. c4 {[%clk 1:10:09]} 15... dxc4 {[%clk 1:16:45]} 16. Bxc4 {[%clk
1:09:38]} 16... Nc5 {[%clk 1:14:43]} 17. Nbd2 {[%clk 1:06:15]} 17... Bd7 {[%clk
1:14:05]} 18. a4 {[%clk 1:02:13]} 18... Rc8 {[%clk 1:13:43]} 19. Nb3 {[%clk
0:57:38]} 19... b6 {[%clk 1:03:59]} 20. Nxc5 {[%clk 0:57:06]} 20... Rxc5 {[%clk
1:02:26]} 21. Bd3 {[%clk 0:55:10]} 21... Nd6 {[%clk 1:01:10]} 22. O-O {[%clk
0:52:43]} 22... e5 {[%clk 0:55:04]} 23. Rfe1 {[%clk 0:48:02]} 23... Be6 {[%clk
0:54:14]} 24. Bf1 {[%clk 0:43:12]} 24... Ke7 {[%clk 0:54:14]} 25. g3 {[%clk
0:37:24]} 25... Rhc8 {[%clk 0:52:00]} 26. Bg2 {[%clk 0:36:25]} 26... Rc4 {[%clk
0:51:27]} 27. Nd2 {[%clk 0:36:07]} 27... Rd4 {[%clk 0:50:40]} 28. Red1 {[%clk
0:32:28]} 28... Rc2 {[%clk 0:48:30]} 29. Nf1 {[%clk 0:30:32]} 29... Rxd1 {[%clk
0:47:20]} 30. Rxd1 {[%clk 0:28:56]} 30... Ra2 {[%clk 0:36:48]} 31. Rc1 {[%clk
0:28:38]} 31... Bc4 {[%clk 0:33:52]} 32. Ne3 {[%clk 0:28:23]} 32... Rxa4 {[%clk
0:31:45]} 33. Nd5+ {[%clk 0:23:32]} 33... Bxd5 {[%clk 0:31:20]} 34. Bxd5 {[%clk
0:23:54]} 34... Nxb5 {[%clk 0:29:43]} 35. Rc6 {[%clk 0:23:10]} 35... Rd4 {[%clk
0:27:29]} 36. Bb3 {[%clk 0:19:27]} 36... Rd6 {[%clk 0:27:33]} 37. Rc4 {[%clk
0:19:41]} 37... Nd4 {[%clk 0:27:03]} 38. Ba4 {[%clk 0:18:16]} 38... b5 {[%clk
0:26:42]} 39. Rc5 {[%clk 0:18:35]} 39... bxa4 {[%clk 0:27:01]} 40. Rxa5 {[%clk
0:18:57]} 40... Ne2+ {[%clk 0:27:24]} 41. Kf1 {[%clk 0:18:54]} 41... Nc3 {[%clk
0:27:49]} 42. Kg2 {[%clk 0:18:42]} 42... Rd5 {[%clk 0:28:10]} 43. Ra6 {[%clk
0:18:54]} 43... Rd4 {[%clk 0:28:30]} 44. Rc6 {[%clk 0:19:00]} 44... Nb5 {[%clk
0:28:49]} 45. Rb6 {[%clk 0:19:11]} 45... Rb4 {[%clk 0:29:12]} 46. Ra6 {[%clk
0:19:28]} 46... a3 {[%clk 0:29:35]} 47. Ra5 {[%clk 0:19:52]} 47... Rb2 {[%clk
0:30:00]} 48. g4 {[%clk 0:20:00]} 48... a2 {[%clk 0:30:24]} 49. g5 {[%clk
0:20:25]} 49... fxg5 {[%clk 0:30:47]} 50. h4 {[%clk 0:20:49]} 50... gxh4 {[%clk
0:31:10]} 51. Kh3 {[%clk 0:21:06]} 51... Nc3 {[%clk 0:31:29]} 52. f4 {[%clk
0:21:16]} 52... Rb3 {[%clk 0:31:42]} 53. fxe5 {[%clk 0:21:03]} 53... Na4+ {[%clk
0:32:11]} 54. Kxh4 {[%clk 0:21:23]} 54... a1=Q {[%clk 0:32:31]} 55. Rxa4 {[%clk
0:21:48]} 55... Qxa4+ {[%clk 0:32:54]} 56. Kh5 {[%clk 0:22:13]} 56... Qf4 {[%clk
0:33:17]} 57. e6 {[%clk 0:22:30]} 57... Rh3# {[%clk 0:33:45]} 0-1

[Variant "Standard"]
[Site "Europe Echecs"]

[Event "Championnat du monde jeunes U10"]
[Date "2024.11.17"]
[White "Gomez Silva, Maximiliano"]
[Black "Zilincan, Tomas"]
[WhiteElo "1643"]
[BlackElo "1778"]
[Round "3.45"]
[Result "1/2-1/2"]
[TimeControl "5400+30"]

1. d4 e6 {[%clk 1:30:41]} 2. Nf3 {[%clk 1:29:57]} 2... d5 {[%clk 1:31:02]} 3. g3
{[%clk 1:29:43]} 3... c6 {[%clk 1:31:16]} 4. Bg2 {[%clk 1:29:17]} 4... Nf6
{[%clk 1:31:01]} 5. O-O {[%clk 1:28:47]} 5... Nbd7 {[%clk 1:31:14]} 6. c4 {[%clk
1:27:36]} 6... Be7 {[%clk 1:30:50]} 7. Qc2 {[%clk 1:27:04]} 7... O-O {[%clk
1:31:10]} 8. b3 {[%clk 1:25:31]} 8... b6 {[%clk 1:27:19]} 9. Bf4 {[%clk
1:20:37]} 9... Ba6 {[%clk 1:25:27]} 10. Nbd2 {[%clk 1:17:10]} 10... Rc8 {[%clk
1:24:43]} 11. Rfe1 {[%clk 1:07:01]} 11... c5 {[%clk 1:24:29]} 12. e4 {[%clk
1:00:28]} 12... dxe4 {[%clk 1:24:10]} 13. Nxe4 {[%clk 1:00:37]} 13... cxd4
{[%clk 1:24:12]} 14. Nxd4 {[%clk 0:58:30]} 14... e5 {[%clk 1:23:52]} 15. Nxf6+
{[%clk 0:58:27]} 15... Bxf6 {[%clk 1:24:02]} 16. Nc6 {[%clk 0:57:47]} 16... Qc7
{[%clk 1:21:40]} 17. Nb4 {[%clk 0:49:46]} 17... Bb7 {[%clk 1:21:42]} 18. Bxb7
{[%clk 0:47:26]} 18... Qxb7 {[%clk 1:22:08]} 19. Be3 {[%clk 0:45:17]} 19... a5
{[%clk 1:22:22]} 20. Nd3 {[%clk 0:45:36]} 20... b5 {[%clk 1:22:17]} 21. Rac1
{[%clk 0:42:30]} 21... e4 {[%clk 1:21:57]} 22. Nf4 {[%clk 0:42:09]} 22... Ne5
{[%clk 1:22:09]} 23. Red1 {[%clk 0:37:46]} 23... bxc4 {[%clk 1:22:04]} 24. Nd5
{[%clk 0:34:40]} 24... cxb3 {[%clk 1:10:46]} 25. Qxe4 {[%clk 0:34:32]} 25... Qa6
{[%clk 1:10:52]} 26. axb3 {[%clk 0:30:32]} 26... Qe6 {[%clk 1:07:25]} 27. Nxf6+
{[%clk 0:25:32]} 27... Qxf6 {[%clk 1:07:31]} 28. Rxc8 {[%clk 0:25:18]} 28...
Rxc8 {[%clk 1:07:50]} 29. Bd4 {[%clk 0:24:32]} 29... Nf3+ {[%clk 1:07:12]} 30.
Kg2 {[%clk 0:24:35]} 30... Nxd4 {[%clk 1:07:13]} 31. Qxd4 {[%clk 0:24:48]} 31...
Qc6+ {[%clk 1:07:30]} 32. Qd5 {[%clk 0:24:18]} 32... Qc7 {[%clk 1:07:48]} 33.
Ra1 {[%clk 0:20:11]} 33... h6 {[%clk 1:07:06]} 34. Rxa5 {[%clk 0:18:23]} 34...
Qb8 {[%clk 1:05:40]} 35. Rb5 {[%clk 0:16:26]} 35... Qc7 {[%clk 1:04:04]} 36. Rb7
{[%clk 0:12:50]} 36... Qc6 {[%clk 1:04:26]} 37. Qxc6 {[%clk 0:13:17]} 37... Rxc6
{[%clk 1:04:51]} 38. Rd7 {[%clk 0:12:20]} 38... Rc2 {[%clk 1:05:03]} 39. b4
{[%clk 0:11:47]} 39... Rb2 {[%clk 1:05:28]} 40. Rd4 {[%clk 0:11:41]} 40... Kf8
{[%clk 1:05:28]} 41. h4 {[%clk 0:10:51]} 41... Ke7 {[%clk 1:05:53]} 42. Kf3
{[%clk 0:10:32]} 42... Ke6 {[%clk 1:06:10]} 43. h5 {[%clk 0:09:56]} 43... g6
{[%clk 1:05:47]} 44. g4 {[%clk 0:08:40]} 44... Rb3+ {[%clk 1:06:05]} 45. Kf4
{[%clk 0:07:11]} 45... Rb2 {[%clk 1:04:11]} 46. f3 {[%clk 0:06:40]} 46... Rb3
{[%clk 1:04:08]} 47. Rd2 1/2-1/2

[Variant "Standard"]
[Site "Europe Echecs"]